[Event "*** Monthly 3|2 Blitz Masters"]
[Site "Chess.com"]
[Date "2014.11.25"]
[Round "8"]
[White "GeorgMeier"]
[Black "Sebastian"]
[Result "1-0"]
[WhiteElo "2634"]
[BlackElo "2537"]
[TimeControl "180+2"]
[EndTime "12:47:43 PST"]
[Termination "GeorgMeier won by resignation"]

1. Nf3 {[%clk 0:03:00]} 1... g6 {[%clk 0:02:59]} 2. g3 {[%clk 0:02:59.6]} 2...
Bg7 {[%clk 0:03:00]} 3. d4 {[%clk 0:03:01.2]} 3... c6 {[%clk 0:02:57.1]} 4. Bg2
{[%clk 0:03:01.9]} 4... Nf6 {[%clk 0:02:58.2]} 5. O-O {[%clk 0:03:03.1]} 5... d5
{[%clk 0:02:59.2]} 6. Bf4 {[%clk 0:03:01.9]} 6... O-O {[%clk 0:02:59.6]} 7. Nbd2
{[%clk 0:03:03.4]} 7... Bf5 {[%clk 0:02:59.3]} 8. c3 {[%clk 0:03:04.8]} 8...
Nbd7 {[%clk 0:02:54.9]} 9. Qb3 {[%clk 0:03:05.2]} 9... Qb6 {[%clk 0:02:54.6]}
10. h3 {[%clk 0:03:06.6]} 10... h6 {[%clk 0:02:54.7]} 11. Ne5 {[%clk 0:02:55.7]}
11... g5 {[%clk 0:02:46.8]} 12. Nxd7 {[%clk 0:02:33.5]} 12... Nxd7 {[%clk
0:02:45.4]} 13. Be3 {[%clk 0:02:33.3]} 13... Qc7 {[%clk 0:02:09.3]} 14. c4
{[%clk 0:02:26.6]} 14... e6 {[%clk 0:02:10.4]} 15. Rac1 {[%clk 0:02:24.7]} 15...
Qb6 {[%clk 0:02:09.4]} 16. Rfd1 {[%clk 0:02:20.8]} 16... Rfe8 {[%clk 0:01:53.3]}
17. Nf3 {[%clk 0:02:18.1]} 17... Be4 {[%clk 0:01:53]} 18. Bf1 {[%clk 0:02:18.8]}
18... dxc4 {[%clk 0:01:45.4]} 19. Qxc4 {[%clk 0:02:11.5]} 19... Qxb2 {[%clk
0:01:46.4]} 20. Nd2 {[%clk 0:01:55.8]} 20... Bd5 {[%clk 0:01:47.1]} 21. Qc2
{[%clk 0:01:57.3]} 21... Qxc2 {[%clk 0:01:47.5]} 22. Rxc2 {[%clk 0:01:59.2]}
22... Nb6 {[%clk 0:01:43.1]} 23. Bg2 {[%clk 0:01:48.9]} 23... Red8 {[%clk
0:01:41.7]} 24. Ne4 {[%clk 0:01:42.4]} 24... Nc4 {[%clk 0:01:40.3]} 25. Bc1
{[%clk 0:01:40.1]} 25... Bxe4 {[%clk 0:01:34.7]} 26. Bxe4 {[%clk 0:01:39.7]}
26... Nd6 {[%clk 0:01:36.1]} 27. Bf3 {[%clk 0:01:34.8]} 27... a5 {[%clk
0:01:31.2]} 28. a4 {[%clk 0:01:27.6]} 28... Nf5 {[%clk 0:01:22.1]} 29. e3 {[%clk
0:01:27.9]} 29... Ne7 {[%clk 0:01:23.3]} 30. Ba3 {[%clk 0:01:24.7]} 30... Nd5
{[%clk 0:01:20.8]} 31. Rb1 {[%clk 0:01:25.9]} 31... Rab8 {[%clk 0:01:05.8]} 32.
Bxd5 {[%clk 0:01:11.3]} 32... exd5 {[%clk 0:00:53.7]} 33. Rcb2 {[%clk
0:01:11.7]} 33... Rd7 {[%clk 0:00:53.6]} 34. Rb6 {[%clk 0:01:12.3]} 34... f5
{[%clk 0:00:35.2]} 35. Rxc6 {[%clk 0:01:04]} 35... f4 {[%clk 0:00:36.5]} 36. g4
{[%clk 0:00:51.4]} 36... fxe3 {[%clk 0:00:37.2]} 37. fxe3 {[%clk 0:00:52.9]}
37... Re8 {[%clk 0:00:37.4]} 38. Rc3 {[%clk 0:00:49.7]} 38... Re6 {[%clk
0:00:35.2]} 39. Kf2 {[%clk 0:00:25.7]} 39... Rf7+ {[%clk 0:00:35.9]} 40. Kg2
{[%clk 0:00:24.2]} 40... b6 {[%clk 0:00:37.1]} 41. Rf1 {[%clk 0:00:23.3]} 41...
Rb7 {[%clk 0:00:35.2]} 42. Rb1 {[%clk 0:00:14.1]} 42... Rb8 {[%clk 0:00:32.5]}
43. Rb5 {[%clk 0:00:14.4]} 43... Rbe8 {[%clk 0:00:33.1]} 44. Rbb3 {[%clk
0:00:11.8]} 44... Kh7 {[%clk 0:00:19.6]} 45. Kf3 {[%clk 0:00:12.8]} 45... Rf6+
{[%clk 0:00:20.7]} 46. Kg2 {[%clk 0:00:12.7]} 46... Rfe6 {[%clk 0:00:21.9]} 47.
Kf3 {[%clk 0:00:13.2]} 47... Kg6 {[%clk 0:00:23.5]} 48. Rb5 {[%clk 0:00:13.9]}
48... Rf6+ {[%clk 0:00:24.1]} 49. Kg2 {[%clk 0:00:15]} 49... Rfe6 {[%clk
0:00:24.9]} 50. Kf3 {[%clk 0:00:15.9]} 50... Rd8 {[%clk 0:00:26.6]} 51. Rcb3
{[%clk 0:00:16]} 51... Rf6+ {[%clk 0:00:21]} 52. Ke2 {[%clk 0:00:17]} 52... Rb8
{[%clk 0:00:19.3]} 53. Bc5 {[%clk 0:00:17.6]} 53... Bf8 {[%clk 0:00:18.7]} 54.
Rxb6 {[%clk 0:00:15.1]} 54... Rbxb6 {[%clk 0:00:20]} 55. Rxb6 {[%clk 0:00:16.9]}
55... Rxb6 {[%clk 0:00:20.9]} 56. Bxb6 {[%clk 0:00:18.1]} 56... Bb4 {[%clk
0:00:22.6]} 57. Kd3 {[%clk 0:00:19.5]} 57... Kf6 {[%clk 0:00:23.5]} 58. e4
{[%clk 0:00:20.5]} 58... Ke6 {[%clk 0:00:24.9]} 59. Bc7 {[%clk 0:00:21.2]} 59...
Be1 {[%clk 0:00:24.4]} 60. Be5 {[%clk 0:00:22.2]} 60... Bb4 {[%clk 0:00:24.5]}
61. Bg7 {[%clk 0:00:23]} 61... Kf7 {[%clk 0:00:25.7]} 62. Be5 {[%clk 0:00:23.9]}
62... Ke6 {[%clk 0:00:26.2]} 63. exd5+ {[%clk 0:00:25.3]} 63... Kxd5 {[%clk
0:00:26.8]} 64. Bg7 {[%clk 0:00:25.8]} 64... Be7 {[%clk 0:00:27.3]} 65. Bxh6
{[%clk 0:00:25.7]} 65... Bf6 {[%clk 0:00:28.6]} 66. Bf8 {[%clk 0:00:26.6]} 66...
Bd8 {[%clk 0:00:27.4]} 67. Ba3 {[%clk 0:00:26.1]} 67... Bf6 {[%clk 0:00:28.3]}
68. Bc1 {[%clk 0:00:26.9]} 68... Be7 {[%clk 0:00:29.6]} 69. Be3 {[%clk
0:00:27.1]} 69... Bf6 {[%clk 0:00:31]} 70. Bd2 {[%clk 0:00:27.4]} 70... Bd8
{[%clk 0:00:32]} 71. Be1 {[%clk 0:00:28.5]} 71... Bc7 {[%clk 0:00:33.3]} 72. h4
{[%clk 0:00:29.5]} 72... gxh4 {[%clk 0:00:33.5]} 73. Bxh4 {[%clk 0:00:31.4]}
73... Bb6 {[%clk 0:00:34.9]} 74. Bf2 {[%clk 0:00:31.5]} 74... Bd8 {[%clk
0:00:36]} 75. Be3 {[%clk 0:00:32.7]} 75... Bf6 {[%clk 0:00:37]} 76. g5 {[%clk
0:00:33.5]} 76... Bg7 {[%clk 0:00:38.4]} 77. g6 {[%clk 0:00:31.2]} 77... Ke6
{[%clk 0:00:39.6]} 78. Kc4 {[%clk 0:00:28.1]} 78... Kf5 {[%clk 0:00:40.2]} 79.
d5 {[%clk 0:00:28.9]} 79... Kxg6 {[%clk 0:00:40.5]} 80. Bd4 {[%clk 0:00:25.1]}
80... Bh6 {[%clk 0:00:40.5]} 81. d6 {[%clk 0:00:22.5]} 81... Kf7 {[%clk
0:00:41.4]} 82. Kd5 {[%clk 0:00:23.6]} 82... Ke8 {[%clk 0:00:41.7]} 83. Kc6
{[%clk 0:00:24.3]} 83... Bg5 {[%clk 0:00:42.8]} 84. Bb6 {[%clk 0:00:25.2]} 84...
Bd8 {[%clk 0:00:43.3]} 85. Bc7 {[%clk 0:00:25.9]} 85... Bg5 {[%clk 0:00:40.7]}
86. Bxa5 {[%clk 0:00:26.4]} 86... Kf7 {[%clk 0:00:40.5]} 87. Bc7 {[%clk
0:00:27.6]} 1-0

[Event "*** Monthly 3|2 Blitz Masters"]
[Site "Chess.com"]
[Date "2014.11.25"]
[Round "8"]
[White "gmjlh"]
[Black "Yaacovn"]
[Result "1/2-1/2"]
[WhiteElo "2545"]
[BlackElo "2601"]
[TimeControl "180+2"]
[EndTime "12:48:51 PST"]
[Termination "Game drawn by agreement"]

1. e4 {[%clk 0:03:00]} 1... c6 {[%clk 0:02:25.9]} 2. Nf3 {[%clk 0:02:59.1]} 2...
d5 {[%clk 0:02:20.9]} 3. Nc3 {[%clk 0:03:00.3]} 3... dxe4 {[%clk 0:02:21.3]} 4.
Nxe4 {[%clk 0:03:01.3]} 4... Nf6 {[%clk 0:02:23.1]} 5. Nxf6+ {[%clk 0:03:00.9]}
5... gxf6 {[%clk 0:02:25]} 6. g3 {[%clk 0:02:58.4]} 6... Qd5 {[%clk 0:02:21.9]}
7. Qe2 {[%clk 0:02:51.9]} 7... Bg4 {[%clk 0:02:19.1]} 8. Bg2 {[%clk 0:02:52.6]}
8... Nd7 {[%clk 0:02:20.1]} 9. d4 {[%clk 0:02:31.8]} 9... Bxf3 {[%clk
0:02:11.6]} 10. Bxf3 {[%clk 0:02:33.7]} 10... Qxd4 {[%clk 0:02:12.4]} 11. O-O
{[%clk 0:02:35.1]} 11... Ne5 {[%clk 0:02:12.9]} 12. Bg2 {[%clk 0:02:35.2]} 12...
Qc4 {[%clk 0:02:12.5]} 13. Qh5 {[%clk 0:02:30.7]} 13... Qg4 {[%clk 0:02:11.6]}
14. Qxg4 {[%clk 0:02:24.3]} 14... Nxg4 {[%clk 0:02:13.5]} 15. Bf4 {[%clk
0:02:24.8]} 15... e6 {[%clk 0:02:05.5]} 16. Rae1 {[%clk 0:02:21.1]} 16... O-O-O
{[%clk 0:01:52.9]} 17. c3 {[%clk 0:02:09.6]} 17... Bc5 {[%clk 0:01:49.3]} 18. h3
{[%clk 0:01:59]} 18... Ne5 {[%clk 0:01:19.6]} 19. Bxe5 {[%clk 0:02:00.2]} 19...
fxe5 {[%clk 0:01:21.3]} 20. Rxe5 {[%clk 0:02:01.9]} 20... Bb6 {[%clk 0:01:21.9]}
21. Re2 {[%clk 0:02:02.8]} 21... Rd3 {[%clk 0:01:22.2]} 22. Kh2 {[%clk
0:02:03.7]} 22... Rhd8 {[%clk 0:01:22]} 23. Rfe1 {[%clk 0:01:35.5]} 23... Rd2
{[%clk 0:01:22.7]} 24. Bf3 {[%clk 0:01:36.5]} 24... Bxf2 {[%clk 0:01:21.7]} 25.
Rxd2 {[%clk 0:01:38]} 25... Rxd2 {[%clk 0:01:18.5]} 26. Re2 {[%clk 0:01:39.4]}
26... Rxe2 {[%clk 0:01:18.3]} 27. Bxe2 {[%clk 0:01:40.8]} 27... Kd7 {[%clk
0:01:19.1]} 28. Kg2 {[%clk 0:01:34.5]} 28... Be1 {[%clk 0:01:19.4]} 29. Bd3
{[%clk 0:01:32.2]} 29... h6 {[%clk 0:01:19.1]} 30. g4 {[%clk 0:01:28.3]} 30...
Kd6 {[%clk 0:01:20]} 31. Kf3 {[%clk 0:01:29.8]} 31... Ke5 {[%clk 0:01:20.8]} 32.
Bh7 {[%clk 0:01:29.7]} 32... Bd2 {[%clk 0:01:17.9]} 33. Bg8 {[%clk 0:01:24.2]}
33... Kf6 {[%clk 0:01:17.3]} 34. Bh7 {[%clk 0:01:24.4]} 34... Kg5 {[%clk
0:01:17.2]} 35. Be4 {[%clk 0:01:19.2]} 35... Bc1 {[%clk 0:01:17.9]} 36. b3
{[%clk 0:01:18.5]} 36... Bd2 {[%clk 0:01:18.4]} 37. c4 {[%clk 0:01:19.5]} 37...
Bb4 {[%clk 0:01:15.2]} 38. Bd3 {[%clk 0:01:18.5]} 38... Bc5 {[%clk 0:01:14.7]}
39. Bf1 {[%clk 0:01:19.5]} 39... a5 {[%clk 0:01:15.4]} 40. Ke4 {[%clk 0:01:19]}
40... Kh4 {[%clk 0:01:11.9]} 41. Kf3 {[%clk 0:01:20.1]} 41... Kg5 {[%clk
0:01:06.3]} 42. Ke4 {[%clk 0:01:20.9]} 42... Bd6 {[%clk 0:01:07.1]} 43. Bg2
{[%clk 0:01:21.2]} 43... Bc7 {[%clk 0:01:06.8]} 44. Bf1 {[%clk 0:01:19.2]} 44...
Bb6 {[%clk 0:01:07.6]} 45. Bg2 {[%clk 0:01:20.4]} 45... Bf2 {[%clk 0:01:05.9]}
46. Bf1 {[%clk 0:01:21.5]} 46... Bg3 {[%clk 0:01:06.7]} 47. Bg2 {[%clk
0:01:22.7]} 47... Kf6 {[%clk 0:01:07.7]} 48. Bf1 {[%clk 0:01:19.8]} 48... Ke7
{[%clk 0:01:08.7]} 49. Bg2 {[%clk 0:01:09.4]} 49... Kd6 {[%clk 0:01:09.2]} 50.
Bf3 {[%clk 0:01:05.3]} 50... Kc5 {[%clk 0:01:09.2]} 51. Kd3 {[%clk 0:01:05.9]}
51... Kb4 {[%clk 0:01:10.1]} 52. Kc2 {[%clk 0:01:05.1]} 52... a4 {[%clk
0:01:00]} 53. Bd1 {[%clk 0:01:03.2]} 53... a3 {[%clk 0:00:59.1]} 54. Bf3 {[%clk
0:01:01.4]} 54... Kc5 {[%clk 0:00:59.7]} 55. Kd3 {[%clk 0:01:02.6]} 55... Kd6
{[%clk 0:00:58]} 56. Ke4 {[%clk 0:01:03.7]} 56... Bf2 {[%clk 0:00:59.2]} 57. Be2
{[%clk 0:00:57.6]} 57... Ke7 {[%clk 0:00:57.6]} 58. Bf1 {[%clk 0:00:51.9]} 58...
Bc5 {[%clk 0:00:57.9]} 59. Be2 {[%clk 0:00:53]} 59... Kf6 {[%clk 0:00:58.9]} 60.
Bf1 {[%clk 0:00:54.2]} 60... Kg5 {[%clk 0:00:59.7]} 61. Bg2 {[%clk 0:00:55.6]}
61... f5+ {[%clk 0:00:55.5]} 62. gxf5 {[%clk 0:00:56.5]} 62... exf5+ {[%clk
0:00:57.4]} 63. Kf3 {[%clk 0:00:57.7]} 63... Kf6 {[%clk 0:00:57]} 64. Bf1 {[%clk
0:00:58.8]} 64... Ke5 {[%clk 0:00:57.9]} 65. Bd3 {[%clk 0:01:00]} 65... f4
{[%clk 0:00:55.6]} 66. Ke2 {[%clk 0:00:55.6]} 66... Kd4 {[%clk 0:00:56.1]} 67.
Bf5 {[%clk 0:00:47.4]} 67... Kc3 {[%clk 0:00:54.7]} 68. Bg4 {[%clk 0:00:46.9]}
68... Kb2 {[%clk 0:00:51.8]} 69. Kd3 {[%clk 0:00:46.7]} 69... Be7 {[%clk
0:00:39.6]} 70. Bf3 {[%clk 0:00:47.6]} 70... Bf6 {[%clk 0:00:39.3]} 71. Bh5
{[%clk 0:00:48.5]} 71... Kb1 {[%clk 0:00:39.8]} 72. Bf3 {[%clk 0:00:49.5]} 72...
Kc1 {[%clk 0:00:38.4]} 73. Bh5 {[%clk 0:00:50.4]} 73... Be5 {[%clk 0:00:37.4]}
74. Bf3 {[%clk 0:00:51.5]} 74... Bd6 {[%clk 0:00:37.7]} 75. Bh5 {[%clk
0:00:52.6]} 75... Kb2 {[%clk 0:00:37.7]} 76. Bf3 {[%clk 0:00:53.7]} 76... Bc5
{[%clk 0:00:38.6]} 77. Bh5 {[%clk 0:00:54.7]} 77... Be7 {[%clk 0:00:35.3]} 78.
Bf3 {[%clk 0:00:55.8]} 78... Kb1 {[%clk 0:00:29.2]} 79. Bh5 {[%clk 0:00:56.6]}
79... Bf6 {[%clk 0:00:27]} 80. Bf3 {[%clk 0:00:57.5]} 80... Kc1 {[%clk
0:00:24.1]} 81. Bh5 {[%clk 0:00:58.1]} 81... Be7 {[%clk 0:00:19.2]} 82. Bf3
{[%clk 0:00:59.1]} 82... Bf8 {[%clk 0:00:19.9]} 83. Bh5 {[%clk 0:01:00.1]} 83...
Kb2 {[%clk 0:00:20.1]} 84. Bf3 {[%clk 0:01:01]} 84... Bc5 {[%clk 0:00:19.5]} 85.
Bh5 {[%clk 0:01:02]} 85... Be3 {[%clk 0:00:19.8]} 86. Bf3 {[%clk 0:01:03.1]}
86... b5 {[%clk 0:00:19.2]} 87. cxb5 {[%clk 0:01:03.4]} 87... cxb5 {[%clk
0:00:21.1]} 88. Bh5 {[%clk 0:01:03.9]} 88... b4 {[%clk 0:00:21.3]} 89. Bf3
{[%clk 0:01:05]} 89... Kc1 {[%clk 0:00:19.6]} 90. Bh5 {[%clk 0:01:05.9]} 90...
Bd2 {[%clk 0:00:19.8]} 91. Bf3 {[%clk 0:01:06.7]} 91... Bc3 {[%clk 0:00:20.5]}
92. Bh5 {[%clk 0:01:07.7]} 92... Kb2 {[%clk 0:00:21]} 93. Bf3 {[%clk 0:01:08.9]}
93... Be5 {[%clk 0:00:21.2]} 94. Bh5 {[%clk 0:01:10]} 94... Bf6 {[%clk
0:00:22.1]} 95. Bf3 {[%clk 0:01:11.1]} 95... Be7 {[%clk 0:00:22.4]} 96. Bh5
{[%clk 0:01:12]} 96... Bh4 {[%clk 0:00:23.2]} 97. Bf3 {[%clk 0:01:13]} 97... Bf2
{[%clk 0:00:23.3]} 98. Bh5 {[%clk 0:01:14.1]} 98... Be3 {[%clk 0:00:19.5]} 99.
Bf3 {[%clk 0:01:15.1]} 99... Kxa2 {[%clk 0:00:21.2]} 100. Kc2 {[%clk 0:01:15.6]}
100... Ka1 {[%clk 0:00:21.9]} 101. Bh5 {[%clk 0:01:17.5]} 101... Bd4 {[%clk
0:00:22.9]} 102. Bf3 {[%clk 0:01:19.4]} 102... Bc3 {[%clk 0:00:23.1]} 103. Bh5
{[%clk 0:01:21.3]} 103... Bd4 {[%clk 0:00:22.5]} 104. Bf3 {[%clk 0:01:23.2]}
104... Be3 {[%clk 0:00:23.2]} 105. Bh5 {[%clk 0:01:25.1]} 105... Bd2 {[%clk
0:00:24.9]} 106. Bf3 {[%clk 0:01:27]} 106... Be3 {[%clk 0:00:25.8]} 107. Bh5
{[%clk 0:01:28.9]} 107... Bf2 {[%clk 0:00:25.9]} 108. Bf3 {[%clk 0:01:30.8]}
108... Be3 {[%clk 0:00:25.5]} 109. Bh5 {[%clk 0:01:32.7]} 109... Bf2 {[%clk
0:00:26.2]} 110. Bf3 {[%clk 0:01:34.6]} 110... Be3 {[%clk 0:00:27.2]} 111. Bh5
{[%clk 0:01:36.5]} 111... Bg1 {[%clk 0:00:27.9]} 112. Bf3 {[%clk 0:01:38.4]}
112... Bd4 {[%clk 0:00:29.4]} 113. Bh5 {[%clk 0:01:39.4]} 113... Be5 {[%clk
0:00:30.5]} 114. Bf3 {[%clk 0:01:41.3]} 114... Bf6 {[%clk 0:00:31.2]} 115. Bh5
{[%clk 0:01:43.2]} 115... Bg7 {[%clk 0:00:32.2]} 116. Bf3 {[%clk 0:01:45.1]}
116... Bf6 {[%clk 0:00:31.7]} 117. Bh5 {[%clk 0:01:47]} 1/2-1/2

[Event "*** Monthly 3|2 Blitz Masters"]
[Site "Chess.com"]
[Date "2014.11.25"]
[Round "8"]
[White "rhungaski"]
[Black "162a54f5d"]
[Result "1/2-1/2"]
[WhiteElo "2421"]
[BlackElo "2351"]
[TimeControl "180+2"]
[EndTime "12:49:12 PST"]
[Termination "Game drawn by 50-move rule"]

1. e4 {[%clk 0:03:00]} 1... e5 {[%clk 0:02:57.9]} 2. Nf3 {[%clk 0:03:01.1]} 2...
Nc6 {[%clk 0:02:58.9]} 3. Bb5 {[%clk 0:03:02.3]} 3... a6 {[%clk 0:02:57.2]} 4.
Ba4 {[%clk 0:03:03.4]} 4... Nf6 {[%clk 0:02:58.1]} 5. O-O {[%clk 0:03:04.5]}
5... Be7 {[%clk 0:02:59.4]} 6. Re1 {[%clk 0:03:05.2]} 6... b5 {[%clk 0:03:00.6]}
7. Bb3 {[%clk 0:03:06.6]} 7... d6 {[%clk 0:03:01.8]} 8. c3 {[%clk 0:03:07.8]}
8... O-O {[%clk 0:03:02.5]} 9. h3 {[%clk 0:03:09.2]} 9... Na5 {[%clk 0:03:01.6]}
10. Bc2 {[%clk 0:03:09.5]} 10... c5 {[%clk 0:03:02.8]} 11. d4 {[%clk 0:03:11]}
11... Qc7 {[%clk 0:03:03.4]} 12. Nbd2 {[%clk 0:03:11.5]} 12... Nc6 {[%clk
0:03:03.8]} 13. d5 {[%clk 0:03:09]} 13... Nd8 {[%clk 0:03:04.3]} 14. a4 {[%clk
0:03:06.8]} 14... Rb8 {[%clk 0:03:03.1]} 15. axb5 {[%clk 0:03:05.1]} 15... axb5
{[%clk 0:03:02.4]} 16. b4 {[%clk 0:03:01.2]} 16... Bd7 {[%clk 0:02:43.1]} 17.
Nf1 {[%clk 0:02:34.5]} 17... Ne8 {[%clk 0:02:40.6]} 18. Be3 {[%clk 0:02:27.6]}
18... g6 {[%clk 0:02:31.3]} 19. Qd2 {[%clk 0:02:14.2]} 19... Ng7 {[%clk
0:02:29.8]} 20. N3h2 {[%clk 0:01:54.2]} 20... f6 {[%clk 0:02:29.9]} 21. Ra5
{[%clk 0:01:52]} 21... Nf7 {[%clk 0:02:29.2]} 22. Bd3 {[%clk 0:01:50.7]} 22...
f5 {[%clk 0:01:54.1]} 23. f4 {[%clk 0:01:48]} 23... fxe4 {[%clk 0:01:41.8]} 24.
Bxe4 {[%clk 0:01:45.6]} 24... Nf5 {[%clk 0:01:39.7]} 25. Bxf5 {[%clk 0:01:42.4]}
25... Bxf5 {[%clk 0:01:15.1]} 26. Ng3 {[%clk 0:01:25.9]} 26... Bh4 {[%clk
0:01:01.8]} 27. Bf2 {[%clk 0:01:11.6]} 27... exf4 {[%clk 0:00:57]} 28. Nxf5
{[%clk 0:01:11.8]} 28... Bxf2+ {[%clk 0:00:55.8]} 29. Qxf2 {[%clk 0:01:13.7]}
29... gxf5 {[%clk 0:00:56.5]} 30. Qxf4 {[%clk 0:01:11.2]} 30... Ne5 {[%clk
0:00:47.8]} 31. Nf3 {[%clk 0:01:06.5]} 31... Rbe8 {[%clk 0:00:35.5]} 32. Nxe5
{[%clk 0:01:00.1]} 32... dxe5 {[%clk 0:00:34.1]} 33. Qg5+ {[%clk 0:01:00.7]}
33... Kh8 {[%clk 0:00:35.1]} 34. Ra6 {[%clk 0:00:57.3]} 34... cxb4 {[%clk
0:00:29.1]} 35. cxb4 {[%clk 0:00:56.2]} 35... e4 {[%clk 0:00:15.4]} 36. d6
{[%clk 0:00:43]} 36... Qg7 {[%clk 0:00:14]} 37. Qxg7+ {[%clk 0:00:36.2]} 37...
Kxg7 {[%clk 0:00:15.9]} 38. Kf2 {[%clk 0:00:29.2]} 38... Rc8 {[%clk 0:00:12.9]}
39. Rb6 {[%clk 0:00:27.8]} 39... Rfd8 {[%clk 0:00:13.5]} 40. Rxb5 {[%clk
0:00:25.5]} 40... Rc2+ {[%clk 0:00:12.7]} 41. Re2 {[%clk 0:00:26.4]} 41... Rxe2+
{[%clk 0:00:09]} 42. Kxe2 {[%clk 0:00:28.3]} 42... Kf6 {[%clk 0:00:10.5]} 43.
Rb6 {[%clk 0:00:21.3]} 43... Ke5 {[%clk 0:00:10.6]} 44. g3 {[%clk 0:00:19.9]}
44... Ra8 {[%clk 0:00:08.3]} 45. Rb5+ {[%clk 0:00:20.1]} 45... Kxd6 {[%clk
0:00:08.3]} 46. Rxf5 {[%clk 0:00:20.8]} 46... Ra3 {[%clk 0:00:09.3]} 47. Rg5
{[%clk 0:00:20.1]} 47... Rb3 {[%clk 0:00:10.5]} 48. b5 {[%clk 0:00:21.1]} 48...
Ke6 {[%clk 0:00:12.1]} 49. h4 {[%clk 0:00:22.2]} 49... Kf6 {[%clk 0:00:13.3]}
50. Rg4 {[%clk 0:00:21.9]} 50... Rxb5 {[%clk 0:00:13.6]} 51. Rxe4 {[%clk
0:00:23.1]} 51... Rb3 {[%clk 0:00:15.2]} 52. Rf4+ {[%clk 0:00:20.5]} 52... Kg6
{[%clk 0:00:15.9]} 53. Kf2 {[%clk 0:00:20.1]} 53... h5 {[%clk 0:00:16.5]} 54.
Ra4 {[%clk 0:00:20.1]} 54... Rc3 {[%clk 0:00:17.4]} 55. Ra5 {[%clk 0:00:20.1]}
55... Rb3 {[%clk 0:00:16.4]} 56. Kg2 {[%clk 0:00:21.4]} 56... Rc3 {[%clk
0:00:17.2]} 57. Kh3 {[%clk 0:00:22.9]} 57... Rb3 {[%clk 0:00:17.9]} 58. Ra6+
{[%clk 0:00:24.2]} 58... Kg7 {[%clk 0:00:18.7]} 59. Re6 {[%clk 0:00:25.1]} 59...
Rc3 {[%clk 0:00:19.5]} 60. Re5 {[%clk 0:00:24.9]} 60... Kg6 {[%clk 0:00:20.2]}
61. Rg5+ {[%clk 0:00:26.1]} 61... Kh6 {[%clk 0:00:21.7]} 62. Rg8 {[%clk
0:00:27.3]} 62... Rb3 {[%clk 0:00:22.9]} 63. Rf8 {[%clk 0:00:26.4]} 63... Ra3
{[%clk 0:00:23.9]} 64. Rf6+ {[%clk 0:00:27]} 64... Kg7 {[%clk 0:00:25.1]} 65.
Rb6 {[%clk 0:00:28.1]} 65... Rc3 {[%clk 0:00:24.6]} 66. Re6 {[%clk 0:00:27.3]}
66... Rc2 {[%clk 0:00:25.6]} 67. Rb6 {[%clk 0:00:25.5]} 67... Rd2 {[%clk
0:00:25.7]} 68. Rb5 {[%clk 0:00:24.1]} 68... Kg6 {[%clk 0:00:26.4]} 69. Rb6+
{[%clk 0:00:25.1]} 69... Kg7 {[%clk 0:00:27.4]} 70. Rc6 {[%clk 0:00:25.6]} 70...
Re2 {[%clk 0:00:28.2]} 71. Rc1 {[%clk 0:00:22.6]} 71... Ra2 {[%clk 0:00:28.8]}
72. Rg1 {[%clk 0:00:22.4]} 72... Rb2 {[%clk 0:00:30]} 73. Rf1 {[%clk 0:00:21.5]}
73... Ra2 {[%clk 0:00:31.1]} 74. Rf5 {[%clk 0:00:22.6]} 74... Kg6 {[%clk
0:00:31.6]} 75. Rc5 {[%clk 0:00:23.2]} 75... Rb2 {[%clk 0:00:32.2]} 76. Rc6+
{[%clk 0:00:23.8]} 76... Kg7 {[%clk 0:00:33.1]} 77. Rc1 {[%clk 0:00:21.9]} 77...
Ra2 {[%clk 0:00:33.7]} 78. Rg1 {[%clk 0:00:23.5]} 78... Kg6 {[%clk 0:00:34.9]}
79. Rg2 {[%clk 0:00:25.4]} 79... Ra1 {[%clk 0:00:36]} 80. Rb2 {[%clk 0:00:25.9]}
80... Ra3 {[%clk 0:00:37]} 81. Kg2 {[%clk 0:00:26.4]} 81... Rc3 {[%clk
0:00:38.2]} 82. Rb6+ {[%clk 0:00:26.6]} 82... Kg7 {[%clk 0:00:38.9]} 83. Re6
{[%clk 0:00:27.2]} 83... Rb3 {[%clk 0:00:39.8]} 84. Kf2 {[%clk 0:00:28.1]} 84...
Ra3 {[%clk 0:00:41.1]} 85. Re3 {[%clk 0:00:29.3]} 85... Ra2+ {[%clk 0:00:41.6]}
86. Kf3 {[%clk 0:00:30.2]} 86... Ra4 {[%clk 0:00:42.9]} 87. Re4 {[%clk
0:00:28.3]} 87... Ra3+ {[%clk 0:00:43.7]} 88. Kf4 {[%clk 0:00:29.5]} 88... Kg6
{[%clk 0:00:41.9]} 89. Re6+ {[%clk 0:00:30.3]} 89... Kg7 {[%clk 0:00:43.2]} 90.
Re3 {[%clk 0:00:21.5]} 90... Ra6 {[%clk 0:00:35.6]} 91. Kf5 {[%clk 0:00:20.6]}
91... Ra5+ {[%clk 0:00:33.9]} 92. Re5 {[%clk 0:00:21.5]} 92... Ra3 {[%clk
0:00:35.1]} 93. Re7+ {[%clk 0:00:21.9]} 93... Kh6 {[%clk 0:00:35.8]} 94. Re6+
{[%clk 0:00:23]} 94... Kg7 {[%clk 0:00:36]} 95. Rg6+ {[%clk 0:00:21]} 95... Kh7
{[%clk 0:00:37.3]} 96. Rg5 {[%clk 0:00:16.9]} 96... Kh6 {[%clk 0:00:38.4]} 97.
Kf4 {[%clk 0:00:16.9]} 97... Ra4+ {[%clk 0:00:38.2]} 98. Kf3 {[%clk 0:00:18.1]}
98... Ra3+ {[%clk 0:00:39.7]} 99. Kg2 {[%clk 0:00:19.5]} 99... Ra2+ {[%clk
0:00:41.2]} 100. Kh3 {[%clk 0:00:21]} 100... Rb2 {[%clk 0:00:42.4]} 101. Rf5
{[%clk 0:00:21.9]} 101... Ra2 {[%clk 0:00:43.3]} 102. Rf1 {[%clk 0:00:23.4]}
102... Rb2 {[%clk 0:00:44.4]} 103. Rg1 {[%clk 0:00:25]} 103... Ra2 {[%clk
0:00:45.5]} 104. Rg2 {[%clk 0:00:26.9]} 104... Ra3 {[%clk 0:00:46.6]} 105. Rf2
{[%clk 0:00:28.2]} 105... Rb3 {[%clk 0:00:47.6]} 106. Kg2 {[%clk 0:00:29.4]}
106... Ra3 {[%clk 0:00:49]} 107. Re2 {[%clk 0:00:31]} 107... Kg6 {[%clk
0:00:49.9]} 108. Kf2 {[%clk 0:00:30.3]} 108... Rb3 {[%clk 0:00:51.1]} 1/2-1/2

[Event "*** Monthly 3|2 Blitz Masters"]
[Site "Chess.com"]
[Date "2014.11.25"]
[Round "9"]
[White "stepanosinovsky"]
[Black "pKiLz5Rn9b"]
[Result "1-0"]
[WhiteElo "2248"]
[BlackElo "2128"]
[TimeControl "180+2"]
[EndTime "12:51:32 PST"]
[Termination "stepanosinovsky won by resignation"]

1. Nf3 {[%clk 0:03:00]} 1... Nf6 {[%clk 0:02:58.9]} 2. g3 {[%clk 0:03:00.6]}
2... e6 {[%clk 0:03:00.4]} 3. Bg2 {[%clk 0:03:02.5]} 3... d5 {[%clk 0:03:02.1]}
4. O-O {[%clk 0:03:04.4]} 4... Bd6 {[%clk 0:03:03.8]} 5. d3 {[%clk 0:03:04.7]}
5... O-O {[%clk 0:03:05.4]} 6. Nbd2 {[%clk 0:03:06.4]} 6... c5 {[%clk 0:03:07]}
7. e4 {[%clk 0:03:08.1]} 7... Nc6 {[%clk 0:03:08.7]} 8. Re1 {[%clk 0:03:09.4]}
8... Qc7 {[%clk 0:03:09]} 9. c3 {[%clk 0:03:09.6]} 9... Rd8 {[%clk 0:03:07.3]}
10. Qe2 {[%clk 0:03:08.4]} 10... Bf8 {[%clk 0:03:08.5]} 11. e5 {[%clk
0:03:07.3]} 11... Nd7 {[%clk 0:03:09.1]} 12. h4 {[%clk 0:03:06.2]} 12... b6
{[%clk 0:03:10.4]} 13. Nf1 {[%clk 0:03:07.1]} 13... Ba6 {[%clk 0:03:10.6]} 14.
h5 {[%clk 0:03:07.3]} 14... Ndxe5 {[%clk 0:03:07.6]} 15. Nxe5 {[%clk 0:03:02.8]}
15... Qxe5 {[%clk 0:03:06.9]} 16. Qxe5 {[%clk 0:03:02.6]} 16... Nxe5 {[%clk
0:03:07.6]} 17. Rxe5 {[%clk 0:03:04.5]} 17... Bxd3 {[%clk 0:03:08.3]} 18. Re1
{[%clk 0:03:01.9]} 18... f6 {[%clk 0:03:07]} 19. Rxe6 {[%clk 0:02:52]} 19... Kf7
{[%clk 0:03:02.9]} 20. Re1 {[%clk 0:02:51.6]} 20... Re8 {[%clk 0:03:04.2]} 21.
Bf4 {[%clk 0:02:48.3]} 1-0